[Event "15. Dobrovický rapid - Tereos TTD a.s. – open"]
[Site "Dobrovice, Czech Republic"]
[Date "2020.02.29"]
[Round "9.6"]
[White "Sorm Daniel"]
[Black "Janicek Jindrich"]
[Result "0-1"]
[TimeControl "15m + 3s / tah"]
[WhiteElo "2310"]
[BlackElo "2022"]

1. d4 {[%clk 00:15:05]} {[%emt 00:03:19]} d5 {[%clk 00:15:03]} {[%emt
00:00:03]} 2. c4 {[%clk 00:15:07]} {[%emt 00:00:01]} c6 {[%clk 00:15:04]}
{[%emt 00:00:02]} 3. Nc3 {[%clk 00:15:08]} {[%emt 00:00:01]} Nf6 {[%clk
00:15:05]} {[%emt 00:00:02]} 4. Nf3 {[%clk 00:15:11]} {[%emt 00:00:01]} e6
{[%clk 00:15:05]} {[%emt 00:00:02]} 5. Qc2 {[%clk 00:15:12]} {[%emt 00:00:01]}
g6 {[%clk 00:15:05]} {[%emt 00:00:04]} 6. Bf4 {[%clk 00:14:48]} {[%emt
00:00:27]} Bg7 {[%clk 00:15:00]} {[%emt 00:00:07]} 7. e3 {[%clk 00:14:44]}
{[%emt 00:00:07]} O-O {[%clk 00:15:01]} {[%emt 00:00:03]} 8. Be2 {[%clk
00:14:36]} {[%emt 00:00:11]} Nbd7 {[%clk 00:14:25]} {[%emt 00:00:39]} 9. O-O
{[%clk 00:14:29]} {[%emt 00:00:10]} a6 {[%clk 00:13:11]} {[%emt 00:01:17]} 10.
c5 {[%clk 00:13:20]} {[%emt 00:01:12]} Re8 {[%clk 00:12:19]} {[%emt 00:00:55]}
11. h3 {[%clk 00:12:48]} {[%emt 00:00:35]} Nh5 {[%clk 00:11:56]} {[%emt
00:00:25]} 12. Bd6 {[%clk 00:12:33]} {[%emt 00:00:17]} e5 {[%clk 00:11:31]}
{[%emt 00:00:29]} 13. dxe5 {[%clk 00:12:32]} {[%emt 00:00:04]} Nxe5 {[%clk
00:11:30]} {[%emt 00:00:04]} 14. Nd4 {[%clk 00:11:39]} {[%emt 00:00:56]} Qh4
{[%clk 00:09:31]} {[%emt 00:02:01]} 15. Nf3 {[%clk 00:10:18]} {[%emt 00:01:23]}
Nxf3+ {[%clk 00:09:14]} {[%emt 00:00:22]} 16. Bxf3 {[%clk 00:10:20]} {[%emt
00:00:01]} f5 {[%clk 00:08:59]} {[%emt 00:00:19]} 17. Qa4 {[%clk 00:07:29]}
{[%emt 00:02:53]} Qd8 {[%clk 00:06:08]} {[%emt 00:02:54]} 18. Rad1 {[%clk
00:06:58]} {[%emt 00:00:34]} Nf6 {[%clk 00:06:07]} {[%emt 00:00:04]} 19. Qf4
{[%clk 00:06:21]} {[%emt 00:00:40]} Ne4 {[%clk 00:05:58]} {[%emt 00:00:13]} 20.
Nxe4 {[%clk 00:05:57]} {[%emt 00:00:27]} fxe4 {[%clk 00:05:56]} {[%emt
00:00:05]} 21. Bg4 {[%clk 00:05:59]} Qf6 {[%clk 00:05:38]} {[%emt 00:00:22]} 22.
Qxf6 {[%clk 00:05:16]} {[%emt 00:00:46]} Bxf6 {[%clk 00:05:38]} {[%emt
00:00:02]} 23. Bxc8 {[%clk 00:05:17]} {[%emt 00:00:02]} Raxc8 {[%clk 00:05:36]}
{[%emt 00:00:05]} 24. b4 {[%clk 00:05:12]} {[%emt 00:00:08]} Be5 {[%clk
00:05:11]} {[%emt 00:00:28]} 25. Bxe5 {[%clk 00:04:41]} {[%emt 00:00:34]} Rxe5
{[%clk 00:05:13]} {[%emt 00:00:02]} 26. Rd2 {[%clk 00:04:24]} {[%emt 00:00:20]}
Rf8 {[%clk 00:04:56]} {[%emt 00:00:19]} 27. Rb1 {[%clk 00:04:20]} {[%emt
00:00:07]} Ref5 {[%clk 00:04:29]} {[%emt 00:00:30]} 28. a4 {[%clk 00:03:57]}
{[%emt 00:00:26]} Kg7 {[%clk 00:04:25]} {[%emt 00:00:07]} 29. b5 {[%clk
00:03:45]} {[%emt 00:00:15]} axb5 {[%clk 00:04:27]} {[%emt 00:00:01]} 30. axb5
{[%clk 00:03:47]} {[%emt 00:00:01]} h5 {[%clk 00:04:06]} {[%emt 00:00:24]} 31.
h4 {[%clk 00:03:17]} {[%emt 00:00:33]} g5 {[%clk 00:03:51]} {[%emt 00:00:17]}
32. hxg5 {[%clk 00:02:54]} {[%emt 00:00:26]} Kg6 {[%clk 00:03:47]} {[%emt
00:00:07]} 33. bxc6 {[%clk 00:02:43]} {[%emt 00:00:15]} bxc6 {[%clk 00:03:49]}
{[%emt 00:00:01]} 34. Rb6 {[%clk 00:02:45]} Rc8 {[%clk 00:03:49]} {[%emt
00:00:03]} 35. Ra2 {[%clk 00:02:43]} {[%emt 00:00:05]} Kxg5 {[%clk 00:03:51]}
{[%emt 00:00:01]} 36. Raa6 {[%clk 00:02:37]} {[%emt 00:00:10]} Rf6 {[%clk
00:03:51]} {[%emt 00:00:03]} 37. Ra7 {[%clk 00:02:28]} {[%emt 00:00:12]} Rcf8
{[%clk 00:03:28]} {[%emt 00:00:26]} 38. Rg7+ {[%clk 00:02:05]} {[%emt
00:00:26]} Kh6 {[%clk 00:03:02]} {[%emt 00:00:29]} 39. Rbb7 {[%clk 00:02:07]}
{[%emt 00:00:01]} Rf5 {[%clk 00:02:08]} {[%emt 00:00:57]} 40. Rbc7 {[%clk
00:01:11]} {[%emt 00:00:59]} R5f6 {[%clk 00:01:17]} {[%emt 00:00:53]} 41. Rh7+
{[%clk 00:01:05]} {[%emt 00:00:09]} Kg5 {[%clk 00:01:18]} {[%emt 00:00:02]} 42.
Rcg7+ {[%clk 00:01:06]} {[%emt 00:00:03]} Kf5 {[%clk 00:01:17]} {[%emt
00:00:03]} 43. Rxh5+ {[%clk 00:00:48]} {[%emt 00:00:22]} Ke6 {[%emt 00:00:05]}
44. Rhh7 Rc8 {[%clk 00:00:39]} {[%emt 00:00:34]} 45. Re7+ {[%clk 00:00:32]}
{[%emt 00:00:19]} Kf5 {[%clk 00:00:40]} {[%emt 00:00:02]} 46. Rhg7 {[%clk
00:00:31]} {[%emt 00:00:04]} Rg6 {[%clk 00:00:25]} {[%emt 00:00:18]} 47. Rxg6
Kxg6 {[%clk 00:00:27]} 48. Re6+ {[%clk 00:00:13]} {[%emt 00:00:06]} Kf7 {[%clk
00:00:26]} {[%emt 00:00:03]} 49. Rd6 {[%clk 00:00:13]} {[%emt 00:00:02]} Ke7
{[%clk 00:00:25]} {[%emt 00:00:03]} 50. Kf1 {[%clk 00:00:14]} {[%emt 00:00:03]}
Kf7 {[%clk 00:00:24]} {[%emt 00:00:04]} 51. Ke2 {[%clk 00:00:16]} {[%emt
00:00:01]} Ke7 {[%clk 00:00:22]} {[%emt 00:00:05]} 52. f3 {[%clk 00:00:12]}
{[%emt 00:00:08]} exf3+ {[%clk 00:00:22]} {[%emt 00:00:03]} 53. gxf3 {[%clk
00:00:14]} {[%emt 00:00:01]} Rc7 {[%clk 00:00:22]} {[%emt 00:00:02]} 54. Kd3
{[%clk 00:00:15]} {[%emt 00:00:03]} Rc8 {[%clk 00:00:24]} {[%emt 00:00:01]} 55.
Kd4 {[%clk 00:00:16]} {[%emt 00:00:03]} Rc7 {[%clk 00:00:24]} {[%emt 00:00:02]}
56. Ke5 {[%clk 00:00:17]} {[%emt 00:00:02]} Rc8 {[%clk 00:00:22]} {[%emt
00:00:03]} 57. f4 {[%clk 00:00:17]} {[%emt 00:00:04]} Kf7 {[%clk 00:00:18]}
{[%emt 00:00:07]} 58. f5 {[%clk 00:00:12]} {[%emt 00:00:09]} Re8+ {[%clk
00:00:15]} {[%emt 00:00:06]} 59. Re6 {[%clk 00:00:14]} {[%emt 00:00:01]} Rc8
{[%clk 00:00:16]} {[%emt 00:00:01]} 60. f6 {[%clk 00:00:13]} {[%emt 00:00:05]}
Kf8 {[%clk 00:00:17]} {[%emt 00:00:02]} 61. Re7 {[%clk 00:00:08]} {[%emt
00:00:08]} Rd8 {[%clk 00:00:15]} {[%emt 00:00:05]} 62. Ke6 {[%clk 00:00:00]}
{[%emt 00:00:08]} d4 {[%clk 00:00:14]} {[%emt 00:00:01]} 0-1

[Event "15. Dobrovický rapid - Tereos TTD a.s. – open"]
[Site "Dobrovice, Czech Republic"]
[Date "2020.02.29"]
[Round "9.7"]
[White "Kaderabek Jiri"]
[Black "Nedoma Marek"]
[Result "1-0"]
[TimeControl "15m + 3s / tah"]
[WhiteElo "2105"]
[BlackElo "2003"]

1. e4 {[%clk 00:15:04]} {[%emt 00:00:02]} c5 {[%clk 00:15:00]} {[%emt
00:00:06]} 2. Nf3 {[%clk 00:15:05]} {[%emt 00:00:02]} e6 {[%clk 00:15:02]} 3.
d4 {[%clk 00:14:48]} {[%emt 00:00:20]} cxd4 {[%clk 00:15:03]} {[%emt 00:00:02]}
4. Nxd4 {[%clk 00:14:49]} {[%emt 00:00:02]} Nc6 {[%clk 00:14:54]} {[%emt
00:00:11]} 5. Be3 {[%clk 00:14:32]} {[%emt 00:00:21]} a6 {[%clk 00:14:48]}
{[%emt 00:00:09]} 6. Bd3 {[%clk 00:13:45]} {[%emt 00:00:50]} Nge7 {[%clk
00:14:44]} {[%emt 00:00:07]} 7. O-O {[%clk 00:13:41]} {[%emt 00:00:07]} g6
{[%clk 00:14:22]} {[%emt 00:00:25]} 8. Nd2 {[%clk 00:12:58]} {[%emt 00:00:46]}
Bg7 {[%clk 00:14:22]} {[%emt 00:00:03]} 9. Nxc6 {[%clk 00:12:58]} {[%emt
00:00:03]} bxc6 {[%clk 00:13:48]} {[%emt 00:00:37]} 10. c4 {[%clk 00:12:44]}
{[%emt 00:00:18]} Bxb2 {[%clk 00:12:52]} {[%emt 00:00:58]} 11. c5 {[%clk
00:12:21]} {[%emt 00:00:26]} O-O {[%clk 00:12:00]} {[%emt 00:00:55]} 12. Nc4
{[%clk 00:12:23]} {[%emt 00:00:01]} Bxa1 {[%clk 00:11:37]} {[%emt 00:00:26]} 13.
Qxa1 {[%clk 00:12:24]} {[%emt 00:00:01]} f6 {[%clk 00:10:27]} {[%emt 00:01:13]}
14. Bh6 {[%clk 00:12:10]} {[%emt 00:00:17]} a5 {[%clk 00:10:12]} {[%emt
00:00:18]} 15. Nd6 {[%clk 00:11:56]} {[%emt 00:00:17]} Ba6 {[%clk 00:09:01]}
{[%emt 00:01:14]} 16. Rd1 {[%clk 00:11:57]} {[%emt 00:00:02]} Bxd3 {[%clk
00:08:23]} {[%emt 00:00:42]} 17. Rxd3 {[%clk 00:11:59]} Rf7 {[%clk 00:07:58]}
{[%emt 00:00:28]} 18. Qd1 {[%clk 00:11:46]} {[%emt 00:00:16]} Ra7 {[%clk
00:06:49]} {[%emt 00:01:12]} 19. h4 {[%clk 00:11:07]} {[%emt 00:00:43]} Nc8
{[%clk 00:06:12]} {[%emt 00:00:39]} 20. Nxf7 {[%clk 00:10:55]} {[%emt
00:00:15]} Kxf7 {[%clk 00:06:14]} 21. Rf3 {[%clk 00:10:35]} {[%emt 00:00:23]}
d5 {[%clk 00:05:19]} {[%emt 00:00:58]} 22. Bg5 {[%clk 00:10:14]} {[%emt
00:00:24]} Kg8 {[%clk 00:03:26]} {[%emt 00:01:56]} 23. Rxf6 {[%clk 00:09:48]}
{[%emt 00:00:29]} Qe8 {[%clk 00:03:28]} 24. Qg4 {[%clk 00:08:30]} {[%emt
00:01:22]} Re7 {[%clk 00:02:21]} {[%emt 00:01:10]} 25. Bh6 {[%clk 00:07:54]}
{[%emt 00:00:39]} Rf7 {[%clk 00:01:22]} {[%emt 00:01:02]} 26. Qxe6 {[%clk
00:06:40]} {[%emt 00:01:16]} Ne7 {[%clk 00:00:13]} {[%emt 00:01:13]} 27. exd5
{[%clk 00:05:59]} {[%emt 00:00:44]} cxd5 {[%clk 00:00:15]} 28. c6 {[%clk
00:06:00]} {[%emt 00:00:02]} d4 {[%clk 00:00:10]} {[%emt 00:00:08]} 29. c7
{[%clk 00:05:34]} {[%emt 00:00:29]} Kh8 {[%clk 00:00:10]} {[%emt 00:00:03]} 30.
Rxf7 {[%clk 00:05:24]} {[%emt 00:00:13]} 1-0

[Event "15. Dobrovický rapid - Tereos TTD a.s. – open"]
[Site "Dobrovice, Czech Republic"]
[Date "2020.02.29"]
[Round "9.8"]
[White "Stursa Jan"]
[Black "Toman Jan"]
[Result "1-0"]
[TimeControl "15m + 3s / tah"]
[WhiteElo "1943"]
[BlackElo "2088"]

1. c4 {[%clk 00:15:02]} {[%emt 00:00:04]} Nf6 {[%clk 00:15:00]} {[%emt
00:00:06]} 2. Nc3 {[%clk 00:14:55]} {[%emt 00:00:09]} g6 {[%clk 00:14:40]}
{[%emt 00:00:23]} 3. g3 {[%clk 00:14:52]} {[%emt 00:00:07]} Bg7 {[%clk
00:14:41]} {[%emt 00:00:02]} 4. Bg2 {[%clk 00:14:53]} {[%emt 00:00:02]} c6
{[%clk 00:14:43]} 5. d4 {[%clk 00:14:37]} {[%emt 00:00:20]} O-O {[%clk
00:14:21]} {[%emt 00:00:25]} 6. Nf3 {[%clk 00:14:36]} {[%emt 00:00:04]} d5
{[%clk 00:14:17]} {[%emt 00:00:06]} 7. cxd5 {[%clk 00:14:35]} {[%emt 00:00:05]}
cxd5 {[%clk 00:14:17]} {[%emt 00:00:04]} 8. Ne5 {[%clk 00:14:28]} {[%emt
00:00:09]} e6 {[%clk 00:12:16]} {[%emt 00:02:04]} 9. O-O {[%clk 00:14:19]}
{[%emt 00:00:12]} Nbd7 {[%clk 00:11:57]} {[%emt 00:00:22]} 10. f4 {[%clk
00:13:28]} {[%emt 00:00:55]} Qb6 {[%clk 00:10:28]} {[%emt 00:01:30]} 11. e3
{[%clk 00:12:23]} {[%emt 00:01:10]} Ne8 {[%clk 00:08:23]} {[%emt 00:02:06]} 12.
b3 {[%clk 00:11:41]} {[%emt 00:00:45]} Nd6 {[%clk 00:08:07]} {[%emt 00:00:19]}
13. Ba3 {[%clk 00:10:21]} {[%emt 00:01:24]} Rd8 {[%clk 00:07:37]} {[%emt
00:00:33]} 14. Na4 {[%clk 00:09:35]} {[%emt 00:00:49]} Qa6 {[%clk 00:06:47]}
{[%emt 00:00:51]} 15. Qc1 {[%clk 00:08:25]} {[%emt 00:01:15]} Nxe5 {[%clk
00:04:18]} {[%emt 00:02:32]} 16. fxe5 {[%clk 00:08:11]} {[%emt 00:00:17]} Nf5
{[%clk 00:04:02]} {[%emt 00:00:19]} 17. g4 {[%clk 00:06:58]} {[%emt 00:01:16]}
Nh4 {[%clk 00:04:01]} {[%emt 00:00:04]} 18. Be7 {[%clk 00:06:49]} {[%emt
00:00:12]} Bd7 {[%clk 00:02:43]} {[%emt 00:01:21]} 19. Bxh4 {[%clk 00:06:43]}
{[%emt 00:00:09]} Rdc8 {[%clk 00:02:40]} {[%emt 00:00:06]} 20. Nc5 {[%clk
00:06:37]} {[%emt 00:00:09]} Qe2 {[%clk 00:02:28]} {[%emt 00:00:15]} 21. Bf3
{[%clk 00:06:22]} {[%emt 00:00:18]} Qb5 {[%clk 00:02:16]} {[%emt 00:00:14]} 22.
Qd2 {[%clk 00:06:02]} {[%emt 00:00:23]} Be8 {[%clk 00:02:13]} {[%emt 00:00:05]}
23. Be2 {[%clk 00:05:45]} {[%emt 00:00:20]} Qb6 {[%clk 00:02:02]} {[%emt
00:00:14]} 24. Rac1 {[%clk 00:05:37]} {[%emt 00:00:11]} Bxe5 {[%clk 00:01:57]}
{[%emt 00:00:08]} 25. dxe5 {[%clk 00:05:33]} {[%emt 00:00:07]} Rxc5 {[%emt
00:00:01]} 26. Rxc5 {[%emt 00:00:02]} Qxc5 {[%clk 00:01:56]} {[%emt 00:00:02]}
27. Rc1 {[%clk 00:05:23]} {[%emt 00:00:12]} Qb6 {[%clk 00:01:51]} {[%emt
00:00:07]} 28. Qd4 {[%clk 00:04:54]} {[%emt 00:00:33]} Qa5 {[%clk 00:01:52]}
{[%emt 00:00:02]} 29. a4 {[%clk 00:04:44]} {[%emt 00:00:13]} b5 {[%clk
00:01:26]} {[%emt 00:00:29]} 30. Bf6 {[%clk 00:04:35]} {[%emt 00:00:12]} g5
{[%clk 00:01:01]} {[%emt 00:00:28]} 31. axb5 {[%clk 00:04:28]} {[%emt
00:00:09]} Bxb5 {[%clk 00:00:58]} {[%emt 00:00:06]} 32. Qc5 {[%clk 00:04:14]}
{[%emt 00:00:17]} a6 {[%clk 00:00:57]} {[%emt 00:00:04]} 33. Qc8+ {[%emt
00:00:16]} 1-0

[Event "15. Dobrovický rapid - Tereos TTD a.s. – open"]
[Site "Dobrovice, Czech Republic"]
[Date "2020.02.29"]
[Round "9.9"]
[White "Szeko Ludovit"]
[Black "Pesek Radomir"]
[Result "0-1"]
[TimeControl "15m + 3s / tah"]
[WhiteElo "2051"]
[BlackElo "1999"]

1. Nf3 {[%clk 00:15:00]} {[%emt 00:00:05]} Nf6 {[%clk 00:15:04]} {[%emt
00:00:02]} 2. g3 {[%clk 00:15:03]} {[%emt 00:00:01]} g6 {[%clk 00:15:05]}
{[%emt 00:00:02]} 3. Bg2 {[%clk 00:15:05]} Bg7 {[%clk 00:15:07]} 4. O-O {[%clk
00:15:07]} {[%emt 00:00:01]} O-O {[%clk 00:15:09]} {[%emt 00:00:01]} 5. d3
{[%clk 00:15:09]} c6 {[%clk 00:15:09]} {[%emt 00:00:03]} 6. e4 {[%clk
00:15:12]} d6 {[%clk 00:15:10]} {[%emt 00:00:02]} 7. c3 {[%clk 00:15:14]}
{[%emt 00:00:01]} Bd7 {[%clk 00:15:02]} {[%emt 00:00:10]} 8. Qc2 {[%clk
00:15:16]} Qc8 {[%clk 00:15:04]} {[%emt 00:00:02]} 9. Re1 {[%clk 00:15:17]}
{[%emt 00:00:02]} Bh3 {[%clk 00:15:04]} {[%emt 00:00:02]} 10. Bh1 {[%clk
00:15:19]} e5 {[%clk 00:14:57]} {[%emt 00:00:11]} 11. Nbd2 {[%clk 00:15:21]}
{[%emt 00:00:01]} Nbd7 {[%clk 00:14:49]} {[%emt 00:00:11]} 12. Nc4 {[%clk
00:15:23]} {[%emt 00:00:01]} Qc7 {[%clk 00:14:46]} {[%emt 00:00:06]} 13. Ng5
{[%clk 00:15:25]} {[%emt 00:00:01]} Bg4 {[%clk 00:14:36]} {[%emt 00:00:12]} 14.
f3 {[%clk 00:15:27]} {[%emt 00:00:01]} Be6 {[%clk 00:14:37]} {[%emt 00:00:02]}
15. Nxe6 {[%clk 00:15:28]} {[%emt 00:00:02]} fxe6 {[%clk 00:14:38]} {[%emt
00:00:01]} 16. Bg2 {[%clk 00:15:24]} {[%emt 00:00:07]} d5 {[%clk 00:14:25]}
{[%emt 00:00:15]} 17. Ne3 {[%clk 00:15:12]} {[%emt 00:00:15]} Qb6 {[%clk
00:13:24]} {[%emt 00:01:05]} 18. Qb3 {[%clk 00:15:05]} {[%emt 00:00:09]} Qxb3
{[%clk 00:12:58]} {[%emt 00:00:29]} 19. axb3 {[%clk 00:15:07]} {[%emt
00:00:02]} Nc5 {[%clk 00:12:47]} {[%emt 00:00:14]} 20. Bh3 {[%clk 00:14:33]}
{[%emt 00:00:37]} Rfe8 {[%clk 00:12:03]} {[%emt 00:00:46]} 21. Bf1 {[%clk
00:14:19]} {[%emt 00:00:18]} Nxb3 {[%clk 00:11:59]} {[%emt 00:00:07]} 22. Ra3
{[%clk 00:14:20]} {[%emt 00:00:02]} Nxc1 {[%clk 00:11:48]} {[%emt 00:00:14]} 23.
Rxc1 {[%clk 00:14:22]} Bh6 {[%clk 00:11:49]} {[%emt 00:00:02]} 24. Re1 {[%clk
00:14:25]} a6 {[%clk 00:11:41]} {[%emt 00:00:11]} 25. Kf2 {[%clk 00:14:03]}
{[%emt 00:00:25]} Rf8 {[%clk 00:11:32]} {[%emt 00:00:12]} 26. Ke2 {[%clk
00:14:01]} {[%emt 00:00:05]} Nd7 {[%clk 00:09:59]} {[%emt 00:01:35]} 27. Nc2
{[%clk 00:13:47]} {[%emt 00:00:17]} Rf6 {[%clk 00:09:32]} {[%emt 00:00:30]} 28.
Bh3 {[%clk 00:13:33]} {[%emt 00:00:17]} Kf7 {[%clk 00:08:58]} {[%emt 00:00:37]}
29. Ra2 {[%clk 00:12:51]} {[%emt 00:00:46]} Ke7 {[%clk 00:08:58]} {[%emt
00:00:03]} 30. Rf1 {[%clk 00:12:53]} {[%emt 00:00:01]} Raf8 {[%clk 00:08:46]}
{[%emt 00:00:15]} 31. Bg2 {[%clk 00:12:46]} {[%emt 00:00:11]} Kd6 {[%clk
00:07:59]} {[%emt 00:00:49]} 32. Na3 {[%clk 00:12:19]} {[%emt 00:00:31]} Nb6
{[%clk 00:06:36]} {[%emt 00:01:25]} 33. b3 {[%clk 00:11:58]} {[%emt 00:00:24]}
Rc8 {[%clk 00:06:34]} {[%emt 00:00:05]} 34. c4 {[%clk 00:11:53]} {[%emt
00:00:08]} d4 {[%clk 00:05:58]} {[%emt 00:00:39]} 35. b4 {[%clk 00:11:32]}
{[%emt 00:00:23]} c5 {[%clk 00:05:53]} {[%emt 00:00:08]} 36. b5 {[%clk
00:11:34]} {[%emt 00:00:01]} Na4 {[%clk 00:05:45]} {[%emt 00:00:11]} 37. Nb1
{[%clk 00:11:09]} {[%emt 00:00:28]} axb5 {[%clk 00:05:41]} {[%emt 00:00:07]} 38.
cxb5 {[%clk 00:11:11]} {[%emt 00:00:02]} Ra8 {[%clk 00:05:41]} {[%emt
00:00:02]} 39. f4 {[%clk 00:10:15]} {[%emt 00:01:00]} exf4 {[%clk 00:05:39]}
{[%emt 00:00:05]} 40. g4 {[%clk 00:10:14]} {[%emt 00:00:04]} e5 {[%clk
00:05:29]} {[%emt 00:00:13]} 41. Kf3 {[%clk 00:10:07]} {[%emt 00:00:10]} Rff8
{[%clk 00:05:18]} {[%emt 00:00:14]} 42. Nd2 {[%clk 00:09:40]} {[%emt 00:00:30]}
Nb6 {[%clk 00:05:20]} {[%emt 00:00:01]} 43. Rfa1 {[%clk 00:09:40]} {[%emt
00:00:04]} Rxa2 {[%clk 00:05:21]} {[%emt 00:00:02]} 44. Rxa2 {[%clk 00:09:42]}
Ra8 {[%clk 00:05:15]} {[%emt 00:00:08]} 45. Nc4+ {[%clk 00:09:43]} {[%emt
00:00:02]} Ke6 {[%clk 00:05:05]} {[%emt 00:00:13]} 46. Rxa8 Nxa8 {[%clk
00:05:07]} 47. g5 {[%clk 00:09:05]} {[%emt 00:00:22]} Bxg5 {[%clk 00:04:58]}
{[%emt 00:00:10]} 48. Bh3+ {[%clk 00:09:07]} Ke7 {[%clk 00:05:00]} {[%emt
00:00:02]} 49. Nxe5 {[%clk 00:09:01]} {[%emt 00:00:09]} Nc7 {[%clk 00:04:55]}
{[%emt 00:00:06]} 50. Nd7 {[%clk 00:08:40]} {[%emt 00:00:26]} Kd6 {[%clk
00:04:30]} {[%emt 00:00:27]} 51. b6 {[%clk 00:08:21]} {[%emt 00:00:22]} Na6
{[%clk 00:04:15]} {[%emt 00:00:18]} 52. Nf8 {[%clk 00:07:43]} {[%emt 00:00:41]}
Nb4 {[%clk 00:03:58]} {[%emt 00:00:20]} 53. Bf1 {[%clk 00:07:41]} {[%emt
00:00:05]} Bd8 {[%clk 00:03:36]} {[%emt 00:00:25]} 54. Nxh7 {[%emt 00:00:03]}
Bxb6 55. Kxf4 {[%clk 00:07:22]} {[%emt 00:00:17]} Bd8 {[%clk 00:03:38]} 56. Nf8
{[%clk 00:07:12]} {[%emt 00:00:14]} g5+ {[%clk 00:03:38]} {[%emt 00:00:04]} 57.
Kf5 {[%clk 00:07:14]} Nc6 {[%clk 00:03:37]} {[%emt 00:00:04]} 58. Ng6 {[%clk
00:06:42]} {[%emt 00:00:35]} Ne7+ {[%emt 00:00:15]} 59. Kxg5 {[%clk 00:06:37]}
{[%emt 00:00:07]} Nxg6+ {[%clk 00:03:28]} {[%emt 00:00:01]} 60. Kxg6 {[%clk
00:06:39]} {[%emt 00:00:01]} b5 {[%clk 00:03:29]} {[%emt 00:00:02]} 61. Be2
{[%clk 00:06:40]} {[%emt 00:00:02]} Ke5 {[%clk 00:03:29]} {[%emt 00:00:03]} 62.
Kf7 {[%clk 00:06:24]} {[%emt 00:00:20]} b4 {[%clk 00:03:28]} {[%emt 00:00:03]}
63. Bd1 {[%clk 00:06:26]} c4 {[%clk 00:03:21]} {[%emt 00:00:10]} 64. dxc4
{[%clk 00:06:24]} {[%emt 00:00:05]} Kxe4 {[%clk 00:03:23]} 65. Ke8 {[%clk
00:06:08]} {[%emt 00:00:19]} Bh4 {[%clk 00:03:23]} {[%emt 00:00:02]} 66. c5
{[%clk 00:06:09]} {[%emt 00:00:03]} Kd5 {[%clk 00:03:24]} {[%emt 00:00:02]} 67.
Bb3+ {[%clk 00:06:03]} {[%emt 00:00:09]} Kxc5 {[%clk 00:03:26]} {[%emt
00:00:01]} 68. Kf7 {[%clk 00:06:02]} {[%emt 00:00:04]} d3 {[%clk 00:03:28]}
{[%emt 00:00:01]} 69. Kg6 {[%clk 00:06:02]} {[%emt 00:00:03]} Kd4 {[%clk
00:03:29]} {[%emt 00:00:01]} 70. Kh5 {[%clk 00:06:03]} {[%emt 00:00:03]} Bd8
{[%clk 00:03:30]} {[%emt 00:00:02]} 71. Kg4 {[%clk 00:06:04]} {[%emt 00:00:02]}
Kc3 {[%clk 00:03:32]} 72. Bd1 {[%clk 00:05:55]} {[%emt 00:00:13]} b3 {[%clk
00:03:34]} 0-1